Workbook

Sheet TD LISTA OPERACI (hidden)
A2: Programa | B2: ='Datos Operaciones seleccionadas'!B8 -> FSE+ C.A. Illes Balears
A3: LISTA DE OPERACIONES SELECCIONADAS
A4: Según requerimiento del artículo 49, apartado 3 del Reglamento (UE) 2021/1060
A5: Actualizado el | B5: DD/MM/AAAA
A7: Código operación | B7: Beneficiario | C7: Contratista | D7: Finalidad operación | E7: Logros previstos o reales | F7: Fecha Inicio | G7: Fecha Finalización | H7: Fondo | I7: Objetivo específico | J7: Categoría de región | K7: Porcentaje de cofinanciación | L7: D. Ubicación | M7: País | N7: Campo de intervención | O7: Coste total
A8: Título Programa | B8: (Todas)
A10: Código operación | B10: Beneficiario | C10: Contratista | D10: Finalidad operación | E10: Logros previstos o reales | F10: Fecha Inicio | G10: Fecha Finalización | H10: Fondo | I10: Objetivo específico | J10: Categoría de región | K10: Porcentaje de cofinanciación | L10: D. Ubicación | M10: País | N10: Campo de intervención | O10: Suma de Coste subvencionable de la operación aprobada
A11: Becas 21-22 | B11: SERVICIO DE OCUPACIÓN DE LAS ISLAS BALEARES | C11: (en blanco) | D11: Becas de segunda oportunidad para jóvenes desempleados para cursar 2-4 Eso o FP curso 21-22 | E11: EECR03 | F11: 44440 | G11: 44804 | H11: ESF | I11: ESO4.6 | J11: T | K11: 0.6 | L11: ES53 | M11: ES | N11: 151 | O11: 1200000
A12: SJFO2022 | B12: SERVICIO DE OCUPACIÓN DE LAS ISLAS BALEARES | C12: (en blanco) | D12: Facilitar la incorporación al mercado laboral de jóvenes incritos en garantía Juvenil mediante proyetcos mixtos de formación y ocupación | E12: EECR05 | F12: 44743 | G12: 45275 | H12: ESF | I12: ESO4.1 | J12: T | K12: 0.6 | L12: ES53 | M12: ES | N12: 149 | O12: 6000000
A13: Becas 23-25 | B13: SERVICIO DE OCUPACIÓN DE LAS ISLAS BALEARES | C13: (en blanco) | D13: Becas de segunda oportunidad para jóvenes desempleados para cursar 2-4 Eso o FP cursos 23-25 | E13: EECR03 | F13: 44805 | G13: 45899 | H13: ESF | I13: ESO4.6 | J13: T | K13: 0.6 | L13: ES53 | M13: ES | N13: 151 | O13: 3600000
A14: SJFO2023 | B14: SERVICIO DE OCUPACIÓN DE LAS ISLAS BALEARES | C14: (en blanco) | D14: Facilitar la incorporación al mercado laboral de jóvenes incritos en garantía Juvenil mediante proyetcos mixtos de formación y ocupación | E14: EECR05 | F14: 45306 | G14: 46020 | H14: ESF | I14: ESO4.1 | J14: T | K14: 0.6 | L14: ES53 | M14: ES | N14: 149 | O14: 6000000
A15: ITINERARIOS PROSTITUCIÓN Y VENTA AMBULANTES | B15: DIRECCIÓN GENERAL DE COOPERACIÓN E INMIGRACIÓN | C15: (en blanco) | D15: Facilitar el abandono del ejercicio de la prostitución y de la venta ambulante no autorizada. | E15: ER516 | F15: 44896 | G15: 45657 | H15: ESF | I15: ESO4.8 | J15: T | K15: 0.6 | L15: ES53 | M15: ES | N15: 153 | O15: 3955971.9
A16: PI 23-24 | B16: SERVICIO DE OCUPACIÓN DE LAS ISLAS BALEARES | C16: (en blanco) | D16: La finalidad es la inserción dentro del mundo laboral o en el sistema de formación de los colectivos vulnerables destinatarios de la operación | E16: EECR05 | F16: 44927 | G16: 45657 | H16: ESF | I16: ESO4.8 | J16: T | K16: 0.6 | L16: ES53 | M16: ES | N16: 153 | O16: 2382000
A17: PI 23-24 GJ | B17: SERVICIO DE OCUPACIÓN DE LAS ISLAS BALEARES | C17: (en blanco) | D17: La finalidad es la inserción dentro del mundo laboral o en el sistema de formación de los jóvenes con riesgo de exclusión social destinatarios de la operación | E17: EECR05 | F17: 44927 | G17: 45657 | H17: ESF | I17: ESO4.1 | J17: T | K17: 0.6 | L17: ES53 | M17: ES | N17: 153 | O17: 700000
A18: REACT 23 | B18: SERVICIO DE OCUPACIÓN DE LAS ISLAS BALEARES | C18: (en blanco) | D18: La finalidad es fomentar la contratación de personas en situación de desempleo de larga duración, para que puedan adquirir experiencia profesional y mantener sus competencias profesionales, con objeto de mejorar la empleabilidad y transitar hacia una inserción laboral continuada y de calidad | E18: EECR05 | F18: 45231 | G18: 45535 | H18: ESF | I18: ESO4.1 | J18: T | K18: 0.6 | L18: ES53 | M18: ES | N18: 135 | O18: 6500000
A19: REACT 23 GJ | B19: SERVICIO DE OCUPACIÓN DE LAS ISLAS BALEARES | C19: (en blanco) | D19: La finalidad es fomentar la contratación de personas jóvenes en situación de desempleo de larga duración, para que puedan adquirir experiencia profesional y mantener sus competencias profesionales, con objeto de mejorar la empleabilidad y transitar hacia una inserción laboral continuada y de calidad | E19: EECR05 | F19: 45231 | G19: 45535 | H19: ESF | I19: ESO4.1 | J19: T | K19: 0.6 | L19: ES53 | M19: ES | N19: 136 | O19: 6500000
A20: SOP 23-24 | B20: SERVICIO DE OCUPACIÓN DE LAS ISLAS BALEARES | C20: (en blanco) | D20: La finalidad del concierto es ofrecer servicio de orientación profesional a través de Entidades del Tercer Sector y que van dirigidos a colectivos vulnerables. | E20: EECR05 | F20: 44927 | G20: 45716 | H20: ESF | I20: ESO4.8 | J20: T | K20: 0.6 | L20: ES53 | M20: ES | N20: 153 | O20: 14766939.9
A21: SOP 23-24 Jóvenes | B21: SERVICIO DE OCUPACIÓN DE LAS ISLAS BALEARES | C21: (en blanco) | D21: Concierto con Entidades del Tercer Sector parar la prestación del Servicio de Orientación Profesional dirigido a jóvenes con riesgo de exclusión social con la finalidad ayudar a las personas usuarias a mejorar su empleabilidad, promover su carrera profesional y facilitar su contratación u orientar hacia el autoempleo | E21: EECR05 | F21: 44927 | G21: 45716 | H21: ESF | I21: ESO4.1 | J21: T | K21: 0.6 | L21: ES53 | M21: ES | N21: 153 | O21: 4161592.15
A22: SOIB Dona 2022-2024 | B22: SERVICIO DE OCUPACIÓN DE LAS ISLAS BALEARES | C22: (en blanco) | D22: La finalidad es cubrir los costes salariales de las Entidades que contraten mujeres víctimas de violencia de género | E22: EECR05 | F22: 44785 | G22: 45869 | H22: ESF | I22: ESO4.1 | J22: T | K22: 0.6 | L22: ES53 | M22: ES | N22: 134 | O22: 4000000

Sheet Datos Operaciones seleccionadas
A1: Programa: | B1: =B8 -> FSE+ C.A. Illes Balears
A4: DATOS OPERACIONES SELECCIONADAS.
A7: CCI Programa | B7: Título Programa | C7: Prioridad | D7: Objetivo específico | E7: Fondo | F7: Categoría de región | G7: Código global de la operación | H7: Descripción de la operación | I7: Operación estratégica (SI/NO) | J7: Aplicación art. 94 o art.95 | K7: Código común métodos de gestión | L7: Método de Gestión | M7: Tipología de operación | N7: Código operación | O7: Nombre operación | P7: Beneficiario | Q7: Contratista | R7: Finalidad operación | S7: Logros previstos o reales | T7: Fecha Inicio | U7: Fecha Finalización | V7: Coste subvencionable de la operación aprobada | W7: Financiación privada nacional | X7: País | Y7: Campo de intervención | Z7: Forma de ayuda | AA7: D. Aplicación Territorial | AB7: D. Actividad Económica | AC7: D. Ubicación | AD7: D. Tema secundario del FSE+ 01 | AE7: D. Tema secundario del FSE+ 02 | AF7: D. Tema secundario del FSE+ 03 | AG7: D. Tema secundario del FSE+ 04 | AH7: D. Tema secundario del FSE+ 05 | AI7: D. Tema secundario del FSE+ 06 | AJ7: D. Tema secundario del FSE+ 07 | AK7: D. Tema secundario del FSE+ 08 | AL7: D. Tema secundario del FSE+ 09 | AM7: D. Tema secundario del FSE+ 10 | AN7: D. Igualdad de Género | AO7: D. Macrorregional y de las cuencas marítimas | AP7: Importe total del gasto subvencionable declarado por los beneficiarios | AQ7: Contribución pública total (nacional+comunitaria) | AR7: Financiación pública nacional | AS7: Contribución de los fondos a las operaciones seleccionadas (EUR) | AT7: Porcentaje de cofinanciación
A8: 2021ES05SFPR008 | B8: FSE+ C.A. Illes Balears | C8: 5 | D8: ESO4.6 | E8: ESF | F8: T | H8: Becas Programa de Segunda Oportunidad 2021-2022 ESO y FP | I8: NO | J8: N/A | L8: CS | M8: 4 | N8: Becas 21-22 | O8: Becas 21-22 | P8: SERVICIO DE OCUPACIÓN DE LAS ISLAS BALEARES | R8: Becas de segunda oportunidad para jóvenes desempleados para cursar 2-4 Eso o FP curso 21-22 | S8: EECR03 | T8: 44440 | U8: 44804 | V8: 1200000 | W8: 0 | X8: ES | Y8: 151 | Z8: 01 | AA8: 30 | AB8: 21 | AC8: ES53 | AM8: 10 | AN8: 02 | AO8: 08 | AP8: 0 | AQ8: =AR8+AS8 -> 1200000 | AR8: =V8-(AS8+W8) -> 480000 | AS8: =V8*AT8 -> 720000 | AT8: =IF(A8="2021ES05SFPR009",85%,IF(A8="2021ES05SFPR004",90%,IF(C8="6",95%,IF(F8="M",40%,IF(F8="T",60%,IF(F8="L",85%,0)))))) -> 0.6
A9: 2021ES05SFPR008 | B9: FSE+ C.A. Illes Balears | C9: 5 | D9: ESO4.1 | E9: ESF | F9: T | H9: Proyectos Mixtos de Formación y Ocupación 2022 | I9: NO | J9: N/A | L9: CS | M9: 1A | N9: SJFO2022 | O9: Proyectos Mixtos 2022 | P9: SERVICIO DE OCUPACIÓN DE LAS ISLAS BALEARES | R9: Facilitar la incorporación al mercado laboral de jóvenes incritos en garantía Juvenil mediante proyetcos mixtos de formación y ocupación | S9: EECR05 | T9: 44743 | U9: 45275 | V9: 6000000 | W9: 0 | X9: ES | Y9: 149 | Z9: 01 | AA9: 30 | AB9: 21 | AC9: ES53 | AD9: 01 | AE9: 02 | AH9: 05 | AM9: 10 | AN9: 02 | AO9: 08 | AP9: 0 | AQ9: =AR9+AS9 -> 6000000 | AR9: =V9-(AS9+W9) -> 2400000 | AS9: =V9*AT9 -> 3600000 | AT9: =IF(A9="2021ES05SFPR009",85%,IF(A9="2021ES05SFPR004",90%,IF(C9="6",95%,IF(F9="M",40%,IF(F9="T",60%,IF(F9="L",85%,0)))))) -> 0.6
A10: 2021ES05SFPR008 | B10: FSE+ C.A. Illes Balears | C10: 5 | D10: ESO4.6 | E10: ESF | F10: T | H10: Becas Programa de Segunda Oportunidad 2022-2025 ESO y FP | I10: NO | J10: N/A | L10: CS | M10: 4 | N10: Becas 23-25 | O10: Becas 23-25 | P10: SERVICIO DE OCUPACIÓN DE LAS ISLAS BALEARES | R10: Becas de segunda oportunidad para jóvenes desempleados para cursar 2-4 Eso o FP cursos 23-25 | S10: EECR03 | T10: 44805 | U10: 45899 | V10: 3600000 | W10: 0 | X10: ES | Y10: 151 | Z10: 01 | AA10: 30 | AB10: 21 | AC10: ES53 | AM10: 10 | AN10: 02 | AO10: 08 | AP10: 0 | AQ10: =AR10+AS10 -> 3600000 | AR10: =V10-(AS10+W10) -> 1440000 | AS10: =V10*AT10 -> 2160000 | AT10: =IF(A10="2021ES05SFPR009",85%,IF(A10="2021ES05SFPR004",90%,IF(C10="6",95%,IF(F10="M",40%,IF(F10="T",60%,IF(F10="L",85%,0)))))) -> 0.6
A11: 2021ES05SFPR008 | B11: FSE+ C.A. Illes Balears | C11: 5 | D11: ESO4.1 | E11: ESF | F11: T | H11: Proyectos Mixtos de Formación y Ocupación 2023 | I11: NO | J11: N/A | L11: CS | M11: 1A | N11: SJFO2023 | O11: Proyectos Mixtos 2023 | P11: SERVICIO DE OCUPACIÓN DE LAS ISLAS BALEARES | R11: Facilitar la incorporación al mercado laboral de jóvenes incritos en garantía Juvenil mediante proyetcos mixtos de formación y ocupación | S11: EECR05 | T11: 45306 | U11: 46020 | V11: 6000000 | W11: 0 | X11: ES | Y11: 149 | Z11: 01 | AA11: 30 | AB11: 21 | AC11: ES53 | AD11: 01 | AE11: 02 | AH11: 05 | AM11: 10 | AN11: 02 | AO11: 08 | AP11: 0 | AQ11: 6000000 | AR11: 2400000 | AS11: 3600000 | AT11: 0.6
A12: 2021ES05SFPR008 | B12: FSE+ C.A. Illes Balears | C12: 2 | D12: ESO4.8 | E12: ESF | F12: T | H12: Itinerarios de Atención Social dirigidos a facilitar el abandono del ejercicio de la prostitución y de la venta ambulante no autorizada. | I12: NO | J12: N/A | L12: CS | M12: 2 | N12: ITINERARIOS PROSTITUCIÓN Y VENTA AMBULANTES | O12: ITINERARIOS PROSTITUCIÓN Y VENTA AMBULANTES | P12: DIRECCIÓN GENERAL DE COOPERACIÓN E INMIGRACIÓN | R12: Facilitar el abandono del ejercicio de la prostitución y de la venta ambulante no autorizada. | S12: ER516 | T12: 44896 | U12: 45657 | V12: 3955971.9 | W12: 0 | X12: ES | Y12: 153 | Z12: 01 | AA12: 30 | AB12: 23 | AC12: ES53 | AH12: 05 | AN12: 02 | AO12: 08 | AP12: 0 | AQ12: 3955971.9 | AR12: 1582388.76 | AS12: 2373583.14 | AT12: 0.6
A13: 2021ES05SFPR008 | B13: FSE+ C.A. Illes Balears | C13: 2 | D13: ESO4.8 | E13: ESF | F13: T | H13: Itinerarios Integrales de inserción 23-24 destinados a colectivos vulnerables | I13: SI | J13: N/A | L13: CS | M13: 2 | N13: PI 23-24 | O13: Itinerarios Integrales de inserción 23-24 | P13: SERVICIO DE OCUPACIÓN DE LAS ISLAS BALEARES | R13: La finalidad es la inserción dentro del mundo laboral o en el sistema de formación de los colectivos vulnerables destinatarios de la operación | S13: EECR05 | T13: 44927 | U13: 45657 | V13: 2382000 | W13: 0 | X13: ES | Y13: 153 | Z13: 01 | AA13: 30 | AB13: 23 | AC13: ES53 | AH13: 05 | AN13: 02 | AO13: 08 | AP13: 0 | AQ13: 2382000 | AR13: 952800 | AS13: 1429200 | AT13: 0.6
A14: 2021ES05SFPR008 | B14: FSE+ C.A. Illes Balears | C14: 5 | D14: ESO4.1 | E14: ESF | F14: T | H14: Itinerarios Integrales de inserción 23-24 dirigido a jóvenes con riesgo de exclusión social | I14: NO | J14: N/A | L14: CS | M14: 2 | N14: PI 23-24 GJ | O14: Itinerarios Integrales de inserción 23-24 jóvenes | P14: SERVICIO DE OCUPACIÓN DE LAS ISLAS BALEARES | R14: La finalidad es la inserción dentro del mundo laboral o en el sistema de formación de los jóvenes con riesgo de exclusión social destinatarios de la operación | S14: EECR05 | T14: 44927 | U14: 45657 | V14: 700000 | W14: 0 | X14: ES | Y14: 153 | Z14: 01 | AA14: 30 | AB14: 21 | AC14: ES53 | AD14: 01 | AE14: 02 | AH14: 05 | AM14: 10 | AN14: 02 | AO14: 08 | AP14: 0 | AQ14: 700000 | AR14: 280000 | AS14: 420000 | AT14: 0.6
A15: 2021ES05SFPR008 | B15: FSE+ C.A. Illes Balears | C15: 1 | D15: ESO4.1 | E15: ESF | F15: T | H15: Fomento de la ocupación para personas (de más de 30 años) desempleadas de larga duración | I15: NO | J15: N/A | L15: CS | M15: 8 | N15: REACT 23 | O15: SOIB Reactiva 23 | P15: SERVICIO DE OCUPACIÓN DE LAS ISLAS BALEARES | R15: La finalidad es fomentar la contratación de personas en situación de desempleo de larga duración, para que puedan adquirir experiencia profesional y mantener sus competencias profesionales, con objeto de mejorar la empleabilidad y transitar hacia una inserción laboral continuada y de calidad | S15: EECR05 | T15: 45231 | U15: 45535 | V15: 6500000 | W15: 0 | X15: ES | Y15: 135 | Z15: 01 | AA15: 30 | AB15: 20 | AC15: ES53 | AD15: 01 | AE15: 02 | AF15: 03 | AG15: 04 | AH15: 05 | AM15: 10 | AN15: 02 | AO15: 08 | AP15: 0 | AQ15: 6500000 | AR15: 2600000 | AS15: 3900000 | AT15: 0.6
A16: 2021ES05SFPR008 | B16: FSE+ C.A. Illes Balears | C16: 5 | D16: ESO4.1 | E16: ESF | F16: T | H16: Fomento de la ocupación para personas jóvenes (de menos de 30 años) desempleadas de larga duración | I16: NO | J16: N/A | L16: CS | M16: 5A | N16: REACT 23 GJ | O16: SOIB Reactiva 23 Jóvenes | P16: SERVICIO DE OCUPACIÓN DE LAS ISLAS BALEARES | R16: La finalidad es fomentar la contratación de personas jóvenes en situación de desempleo de larga duración, para que puedan adquirir experiencia profesional y mantener sus competencias profesionales, con objeto de mejorar la empleabilidad y transitar hacia una inserción laboral continuada y de calidad | S16: EECR05 | T16: 45231 | U16: 45535 | V16: 6500000 | W16: 0 | X16: ES | Y16: 136 | Z16: 01 | AA16: 30 | AB16: 20 | AC16: ES53 | AD16: 01 | AE16: 02 | AH16: 05 | AM16: 10 | AN16: 02 | AO16: 08 | AP16: 0 | AQ16: 6500000 | AR16: 2600000 | AS16: 3900000 | AT16: 0.6
A17: 2021ES05SFPR008 | B17: FSE+ C.A. Illes Balears | C17: 1 | D17: ESO4.1 | E17: ESF | F17: T | H17: Fomento del empleo para mujeres víctimas de violencia de género | I17: NO | J17: N/A | L17: CS | M17: 5A | N17: SOIB Dona 2022-2024 | O17: SOIB Dona | P17: SERVICIO DE OCUPACIÓN DE LAS ISLAS BALEARES | R17: La finalidad es cubrir los costes salariales de las Entidades que contraten mujeres víctimas de violencia de género | S17: EECR05 | T17: 44785 | U17: 45869 | V17: 4000000 | W17: 0 | X17: ES | Y17: 134 | Z17: 01 | AA17: 30 | AB17: 20 | AC17: ES53 | AD17: 01 | AE17: 02 | AF17: 03 | AG17: 04 | AH17: 05 | AM17: 10 | AN17: 02 | AO17: 08 | AP17: 0 | AQ17: 4000000 | AR17: 1600000 | AS17: 2400000 | AT17: 0.6
A18: 2021ES05SFPR008 | B18: FSE+ C.A. Illes Balears | C18: 2 | D18: ESO4.8 | E18: ESF | F18: T | H18: Concierto para la prestación del Servicio de Orientación Profesional 23-24 destinado a colectivos vulnerables | I18: SI | J18: N/A | L18: GC-CONC | M18: 3 | N18: SOP 23-24 | O18: Concierto Servicio de Orientación Profesional 23-24 | P18: SERVICIO DE OCUPACIÓN DE LAS ISLAS BALEARES | R18: La finalidad del concierto es ofrecer servicio de orientación profesional a través de Entidades del Tercer Sector y que van dirigidos a colectivos vulnerables. | S18: EECR05 | T18: 44927 | U18: 45716 | V18: 14766939.9 | W18: 0 | X18: ES | Y18: 153 | Z18: 01 | AA18: 30 | AB18: 23 | AC18: ES53 | AH18: 05 | AN18: 02 | AO18: 08 | AP18: 0 | AQ18: 14766939.9 | AR18: 5906775.96 | AS18: 8860163.94 | AT18: 0.6
A19: 2021ES05SFPR008 | B19: FSE+ C.A. Illes Balears | C19: 5 | D19: ESO4.1 | E19: ESF | F19: T | H19: Concierto para la prestación del Servicio de Orientación Profesional 23-24 destinado a jóvenes con riesgo de exclusión social | I19: SI | J19: N/A | L19: GC-CONC | M19: 3 | N19: SOP 23-24 Jóvenes | O19: SOP 23-24 Jóvenes | P19: SERVICIO DE OCUPACIÓN DE LAS ISLAS BALEARES | R19: Concierto con Entidades del Tercer Sector parar la prestación del Servicio de Orientación Profesional dirigido a jóvenes con riesgo de exclusión social con la finalidad ayudar a las personas usuarias a mejorar su empleabilidad, promover su carrera profesional y facilitar su contratación u orientar hacia el autoempleo | S19: EECR05 | T19: 44927 | U19: 45716 | V19: 4161592.15 | W19: 0 | X19: ES | Y19: 153 | Z19: 01 | AA19: 30 | AB19: 23 | AC19: ES53 | AD19: 01 | AE19: 02 | AH19: 05 | AM19: 10 | AN19: 02 | AO19: 08 | AP19: 0 | AQ19: 4161592.15 | AR19: 1664636.86 | AS19: 2496955.29 | AT19: 0.6
A20: 2021ES05SFPR008 | B20: FSE+ C.A. Illes Balears | C20: 5 | D20: ESO4.1 | E20: ESF | F20: T | H20: Ayudas a la contratación para la ocupación de personas jóvenes con estudios cualificados en el sector público instrumental de la CAIB, la Universitat de les Illes Balears y las entidades locales de las Islas Baleares y entidades que dependen de éstas. | I20: SI | J20: N/A | L20: CS | M20: 5A | N20: SOIB Jove 24 | O20: SOIB Jove 24 | P20: SERVICIO DE OCUPACIÓN DE LAS ISLAS BALEARES | R20: Convocatoria de ayudas a la contratación para la ocupación de personas jóvenes con estudios cualificados en el sector público instrumental de la CAIB, la Universitat de les Illes Balears y las entidades locales de las Islas Baleares y entidades que dependen de éstas. | S20: EECR05 | T20: 45474 | U20: 46006 | V20: 10500000 | W20: 0 | X20: ES | Y20: 136 | Z20: 01 | AA20: 30 | AB20: 20 | AC20: ES53 | AD20: 01 | AE20: 02 | AH20: 05 | AM20: 10 | AN20: 02 | AO20: 08 | AP20: 0 | AQ20: =AR20+AS20 -> 10500000 | AR20: =V20-(AS20+W20) -> 4200000 | AS20: =V20*AT20 -> 6300000 | AT20: =IF(A20="2021ES05SFPR009",85%,IF(A20="2021ES05SFPR004",90%,IF(C20="6",95%,IF(F20="M",40%,IF(F20="T",60%,IF(F20="L",85%,0)))))) -> 0.6
A21: 2021ES05SFPR008 | B21: FSE+ C.A. Illes Balears | C21: 1 | D21: ESO4.1 | E21: ESF | F21: T | H21: Fomento de la ocupación para personas (de más de 30 años) desempleadas de larga duración | I21: NO | J21: N/A | L21: CS | M21: 8 | N21: REACT 24 | O21: SOIB Reactiva 24 | P21: SERVICIO DE OCUPACIÓN DE LAS ISLAS BALEARES | R21: La finalidad es fomentar la contratación de personas en situación de desempleo de larga duración, para que puedan adquirir experiencia profesional y mantener sus competencias profesionales, con objeto de mejorar la empleabilidad y transitar hacia una inserción laboral continuada y de calidad | S21: EECR05 | T21: 45627 | U21: 46012 | V21: 7000000 | W21: 0 | X21: ES | Y21: 135 | Z21: 01 | AA21: 30 | AB21: 23 | AC21: ES53 | AH21: 05 | AN21: 02 | AO21: 08 | AP21: 0 | AQ21: 7000000 | AR21: 2800000 | AS21: 4200000 | AT21: =IF(A21="2021ES05SFPR009",85%,IF(A21="2021ES05SFPR004",90%,IF(C21="6",95%,IF(F21="M",40%,IF(F21="T",60%,IF(F21="L",85%,0)))))) -> 0.6
A22: 2021ES05SFPR008 | B22: FSE+ C.A. Illes Balears | C22: 5 | D22: ESO4.1 | E22: ESF | F22: T | H22: Fomento de la ocupación para personas jóvenes (de menos de 30 años) desempleadas de larga duración | I22: NO | J22: N/A | L22: CS | M22: 5A | N22: REACT 24 GJ | O22: SOIB Reactiva 24 Jóvenes | P22: SERVICIO DE OCUPACIÓN DE LAS ISLAS BALEARES | R22: La finalidad es fomentar la contratación de personas jóvenes en situación de desempleo de larga duración, para que puedan adquirir experiencia profesional y mantener sus competencias profesionales, con objeto de mejorar la empleabilidad y transitar hacia una inserción laboral continuada y de calidad | S22: EECR05 | T22: 45627 | U22: 46012 | V22: 7000000 | W22: 0 | X22: ES | Y22: 136 | Z22: 01 | AA22: 30 | AB22: 20 | AC22: ES53 | AD22: 01 | AE22: 02 | AH22: 05 | AM22: 10 | AN22: 02 | AO22: 08 | AP22: 0 | AQ22: 7000000 | AR22: 2800000 | AS22: 4200000 | AT22: 0.6
A23: 2021ES05SFPR008 | B23: FSE+ C.A. Illes Balears | C23: 2 | D23: ESO4.8 | E23: ESF | F23: T | H23: Itinerarios de Atención Social dirigidos a facilitar el abandono del ejercicio de la prostitución y de la venta ambulante no autorizada 2025-2026. | I23: NO | J23: N/A | L23: CS | M23: 2 | N23: ITINERARIOS PROSTITUCIÓN Y VENTA AMBULANTES 2025-2026 | O23: ITINERARIOS PROSTITUCIÓN Y VENTA AMBULANTES 2025-2026 | P23: DIRECCIÓN GENERAL DE COOPERACIÓN E INMIGRACIÓN | R23: La finalidad es facilitar el abandono del ejercicio de la prostitución y de la venta ambulante no autorizada | S23: ER516 | T23: 45627 | U23: 46356 | V23: 1974011.68 | W23: 0 | X23: ES | Y23: 153 | Z23: 01 | AA23: 30 | AB23: 23 | AC23: ES53 | AH23: 05 | AN23: 02 | AO23: 08 | AP23: 0 | AQ23: 1974011.68 | AR23: 789604.672 | AS23: 1184407.008 | AT23: 0.6
A24: 2021ES05SFPR008 | B24: FSE+ C.A. Illes Balears | C24: 3 | D24: ESO4.5 | E24: ESF | F24: T | H24: Ayudas para la formación de personal investigador 2023 | I24: NO | J24: N/A | L24: CS | M24: 4 | N24: PREDOC 2023 | O24: Predoctorales 2023: Ayudas para la formación de personal investigador (FPI) y la formación de personal investigador empresarial (FPI-E), así como subvenciones para tasas académicas (FPI 2023) | P24: DIRECCIÓN GENERAL DE UNIVERSIDADES, INVESTIGACIÓN Y ENSEÑANZAS ARTÍSTICAS SUPERIORES | R24: La finalidad es financiar ayudas para formar en investigación científica y técnica a titulados superiores universitarios que quieran hacer una tesis doctoral | S24: EECR03 | T24: 45658 | U24: 47208 | V24: 2806024 | W24: 0 | X24: ES | Y24: 150 | Z24: 01 | AA24: 30 | AB24: 21 | AC24: ES53 | AD24: 01 | AE24: 02 | AF24: 03 | AM24: 10 | AN24: 02 | AO24: 08 | AP24: 0 | AQ24: 2806024 | AR24: 1122409.6 | AS24: 1683614.4 | AT24: 0.6
A25: 2021ES05SFPR008 | B25: FSE+ C.A. Illes Balears | C25: 1 | D25: ESO4.1 | E25: ESF | F25: T | H25: Ayudas para incorporar personal investigador al sistema de ciencia de las Illes Balears 2023 | I25: NO | J25: N/A | L25: CS | M25: 5A | N25: POSTDOC 2023 | O25: Postdoctorales 2023: Ayudas para incorporar personal investigador al sistema de ciencia de las Illes Balears (contratos postdoctorales 2023) | P25: DIRECCIÓN GENERAL DE UNIVERSIDADES, INVESTIGACIÓN Y ENSEÑANZAS ARTÍSTICAS SUPERIORES | R25: La finalidad es conceder ayudas para incorporar personal investigador al sistema de ciencia de las Illes Balears (contratos postdoctorales 2023), como medida de fomento de la investigación científica y tecnológica para fortalecer la capacidad de investigación de los grupos de I+D y permitir que alcancen la condición de grupos de investigación competitivos | S25: EECR05 | T25: 45658 | U25: 47483 | V25: 3347400 | W25: 0 | X25: ES | Y25: 134 | Z25: 01 | AA25: 30 | AB25: 21 | AC25: ES53 | AD25: 01 | AE25: 02 | AF25: 03 | AG25: 04 | AH25: 05 | AM25: 10 | AN25: 02 | AO25: 08 | AP25: 0 | AQ25: 3347400 | AR25: 1338960 | AS25: 2008440 | AT25: 0.6
A26: 2021ES05SFPR008 | B26: FSE+ C.A. Illes Balears | C26: 2 | D26: ESO4.8 | E26: ESF | F26: T | H26: Itinerarios Integrales de inserción 2025-2026 destinados a colectivos vulnerables | I26: SI | J26: N/A | L26: CS | M26: 2 | N26: PI 25-26 | O26: SOIB Itinerarios Integrales de inserción 2025-2026 | P26: SERVICIO DE OCUPACIÓN DE LAS ISLAS BALEARES | R26: La finalidad es la inserción dentro del mundo laboral o en el sistema de formación de los colectivos vulnerables destinatarios de la operación | S26: EECR05 | T26: 45658 | U26: 46387 | V26: 2382000 | W26: 0 | X26: ES | Y26: 153 | Z26: 01 | AA26: 30 | AB26: 23 | AC26: ES53 | AH26: 05 | AN26: 02 | AO26: 08 | AP26: 0 | AQ26: 2382000 | AR26: 952800 | AS26: 1429200 | AT26: 0.6
A27: 2021ES05SFPR008 | B27: FSE+ C.A. Illes Balears | C27: 5 | D27: ESO4.1 | E27: ESF | F27: T | H27: Itinerarios Integrales de inserción 2025-2026 dirigido a jóvenes con riesgo de exclusión social | I27: SI | J27: N/A | L27: CS | M27: 2 | N27: PI 25-26 GJ | O27: SOIB Itinerarios Integrales de inserción 2025-2026 GJ | P27: SERVICIO DE OCUPACIÓN DE LAS ISLAS BALEARES | R27: La finalidad es la inserción dentro del mundo laboral o en el sistema de formación de los jóvenes con riesgo de exclusión social destinatarios de la operación | S27: EECR05 | T27: 45658 | U27: 46387 | V27: 700000 | W27: 0 | X27: ES | Y27: 153 | Z27: 01 | AA27: 30 | AB27: 21 | AC27: ES53 | AD27: 01 | AE27: 02 | AH27: 05 | AM27: 10 | AN27: 02 | AO27: 08 | AP27: 0 | AQ27: 700000 | AR27: 280000 | AS27: 420000 | AT27: 0.6
A28: 2021ES05SFPR008 | B28: FSE+ C.A. Illes Balears | C28: 1 | D28: ESO4.1 | E28: ESF | F28: T | H28: Ayudas a la contratación para el empleo de mujeres víctimas de violencia de género | I28: NO | J28: N/A | L28: CS | M28: 5A | N28: SOIB DONA 25-28 | O28: SOIB - Oportunidades de Empleo para la Mujer 2025-2028 | P28: SERVICIO DE OCUPACIÓN DE LAS ISLAS BALEARES | R28: La finalidad es promover la independencia económica y el empoderamiento de las mujeres participantes, al mismo tiempo que refuerza sus posibilidades de una posterior inserción laboral estable | S28: EECR05 | T28: 45691 | U28: 46996 | V28: 6000000 | W28: 0 | X28: ES | Y28: 134 | Z28: 01 | AA28: 30 | AB28: 20 | AC28: ES53 | AD28: 01 | AE28: 02 | AF28: 03 | AG28: 04 | AH28: 05 | AM28: 10 | AN28: 02 | AO28: 08 | AP28: 0 | AQ28: 6000000 | AR28: 2400000 | AS28: 3600000 | AT28: 0.6
A29: 2021ES05SFPR008 | B29: FSE+ C.A. Illes Balears | C29: 5 | D29: ESO4.1 | E29: ESF | F29: T | H29: Ayudas para la contratación de personas jóvenes con estudios cualificados en las entidades locales de las Islas Baleares y sus entidades vinculadas o dependientes, con el fin de que adquieran experiencia laboral ligada a su formación y que desarrollen habilidades que aumenten sus posibilidades de inserción laboral posterior en empleos cualificados | I29: SI | J29: N/A | L29: CS | M29: 5A | N29: SJQEL 2025 | O29: SOIB-Oportunidades de Empleo para Personas Jóvenes Cualificadas en Entidades Locales 2025 | P29: SERVICIO DE OCUPACIÓN DE LAS ISLAS BALEARES | R29: Convocatoria de subvenciones SOIB - Oportunidades de Empleo para Personas Jóvenes Cualificadas en Entidades Locales 2025 | S29: EECR05 | T29: 45778 | U29: 46813 | V29: 10000000 | W29: 0 | X29: ES | Y29: 136 | Z29: 01 | AA29: 30 | AB29: 20 | AC29: ES53 | AD29: 01 | AE29: 02 | AH29: 05 | AM29: 10 | AN29: 02 | AO29: 08 | AP29: 0 | AQ29: 10000000 | AR29: 4000000 | AS29: 6000000 | AT29: 0.6
A30: 2021ES05SFPR008 | B30: FSE+ C.A. Illes Balears | C30: 3 | D30: ESO4.5 | E30: ESF | F30: T | H30: Ayudas para la formación de personal investigador (FPI) y la formación de personal investigador empresarial (FPI-E), así como subvenciones para tasas académicas (FPI 2024) | I30: NO | J30: N/A | L30: CS | M30: 4 | N30: PREDOC 2024 | O30: Predoctorales 2024: Ayudas para la formación de personal investigador (FPI) y la formación de personal investigador empresarial (FPI-E), así como subvenciones para tasas académicas (FPI 2024) | P30: DIRECCIÓN GENERAL DE UNIVERSIDADES, INVESTIGACIÓN Y ENSEÑANZAS ARTÍSTICAS SUPERIORES | R30: La finalidad financiar ayudas para formar personal investigador, con el objetivo de formar en investigación científica y técnica a titulados superiores universitarios que quieran hacer una tesis doctoral | S30: EECR03 | T30: 45901 | U30: 47483 | V30: 3593131.88 | W30: 0 | X30: ES | Y30: 150 | Z30: 01 | AA30: 30 | AB30: 21 | AC30: ES53 | AD30: 01 | AE30: 02 | AF30: 03 | AM30: 10 | AN30: 02 | AO30: 08 | AP30: 0 | AQ30: 3593131.88 | AR30: 1437252.752 | AS30: 2155879.128 | AT30: 0.6
A31: 2021ES05SFPR008 | B31: FSE+ C.A. Illes Balears | C31: 1 | D31: ESO4.1 | E31: ESF | F31: T | H31: Ayudas para incorporar personal investigador al ecosistema de ciencia, tecnología e innovación de las Illes Balears (contratos postdoctorales 2024) | I31: NO | J31: N/A | L31: CS | M31: 5A | N31: POSTDOC 2024 | O31: Postdoctorales 2024: Ayudas para incorporar personal investigador al ecosistema de ciencia, tecnología e innovación de las Illes Balears (contratos postdoctorales 2024) | P31: DIRECCIÓN GENERAL DE UNIVERSIDADES, INVESTIGACIÓN Y ENSEÑANZAS ARTÍSTICAS SUPERIORES | R31: La finalidad es conceder ayudas para incorporar personal investigador al ecosistema de ciencia, tecología e innovación de las Illes Balears (contratos postdoctorales 2024), como medida de fomento de la investigación científica y tecnológica para fortalecer la capacidad de investigación de los grupos de I+D y permitir que alcancen la condición de grupos de investigación competitivos | S31: EECR05 | T31: 45779 | U31: 47483 | V31: 3317700 | W31: 0 | X31: ES | Y31: 134 | Z31: 01 | AA31: 30 | AB31: 21 | AC31: ES53 | AD31: 01 | AE31: 02 | AF31: 03 | AG31: 04 | AH31: 05 | AM31: 10 | AN31: 02 | AO31: 08 | AP31: 0 | AQ31: 3317700 | AR31: 1327080 | AS31: 1990620 | AT31: 0.6
A32: 2021ES05SFPR008 | B32: FSE+ C.A. Illes Balears | C32: 3 | D32: ESO4.5 | E32: ESF | F32: T | H32: Convocatoria de ayudas de formación para contratar personal investigador no doctor en el ámbito de la salud (ayudas PFIS-CAIB y PFIC-CAIB), corresponendientes al período 2025-2029 | I32: NO | J32: N/A | L32: CS | M32: 4 | N32: PREDOC SALUD 25-29 | O32: Convocatoria de ayudas de formación para contratar personal investigador no doctor en el ámbito de la salud (ayudas PFIS-CAIB y PFIC-CAIB), corresponendientes al período 2025-2029 | P32: DIRECCIÓN GENERAL DE INVESTIGACIÓN EN SALUT, FORMACIÓN Y ACREDITACIÓN | R32: La finalidad es financiar ayudas para contratar personal destinadas a su formación como personal investigador en el ámbito de la biomedicina y de la salud, que contribuirán a incrementar su cualificación y profesionalización y a adquirir las competencias específicas de la fase inicial de la carrera investigadora (etapa en formación, R1 o predoctoral); a promover la vocación investigadora entre los profesionales clínicos y a fortalecer la generación de conocimiento de frontera entre la investigación y su transferencia; así como otorgar ayudas para cubrir las tasas académicas para el personal investigador en formación, que incluyen la tutela académica del doctorado, la apertura y el mantenimiento del expediente, y la defensa de la tesis doctoral | S32: EECR03 | T32: 45901 | U32: 47483 | V32: 1200000 | W32: 0 | X32: ES | Y32: 150 | Z32: 01 | AA32: 30 | AB32: 21 | AC32: ES53 | AD32: 01 | AE32: 02 | AF32: 03 | AM32: 10 | AN32: 02 | AO32: 08 | AP32: 0 | AQ32: 1200000 | AR32: 480000 | AS32: 720000 | AT32: 0.6
A33: 2021ES05SFPR008 | B33: FSE+ C.A. Illes Balears | C33: 2 | D33: ESO4.8 | E33: ESF | F33: T | H33: Renovación de los Conciertos para la prestación del Servicio de Orientación para el Empleo 25-27 destinados a colectivos vulnerables (antes Servicio de Orientación Profesional 23-24) | I33: SI | J33: N/A | L33: GC-CONC | M33: 3 | N33: RENOVACIÓN CONCIERTOS SOO 25-27 (antes SOP 23-24) | O33: Renovación de los Conciertos del Servicio de Orientación para colectivos de personas vulnerables 25-27 (antes Servicio de Orientación Profesional 23-24) | P33: SOIB | R33: Renovación, para el período 2025-2027, del Concierto con Entidades del Tercer Sector de Acción Social parar la prestación del Servicio de Orientación para el Empleo (antes Servicio de Orientación Profesional) dirigido a personas vulnerables en riesgo de exclusión social con la finalidad de ayudar a las personas usuarias a mejorar su empleabilidad, promover su carrera profesional y facilitar su contratación u orientarlas hacia el autoempleo | S33: EECR05 | T33: 01/03/2025 o fecha de firma de cada acuerdo de renovación, si ésta es posterior | U33: 28/02/2027 o cuando se cumplan 2 años desde la firma del acuerdo de renovación | V33: 16193343 | W33: 0 | X33: ES | Y33: 153 | Z33: 01 | AA33: 30 | AB33: 23 | AC33: ES53 | AH33: 05 | AN33: 02 | AO33: 08 | AP33: 0 | AQ33: =AR33+AS33 -> 16193343 | AR33: =V33-(AS33+W33) -> 6477337.2 | AS33: =V33*AT33 -> 9716005.8 | AT33: =IF(A33="2021ES05SFPR009",85%,IF(A33="2021ES05SFPR004",90%,IF(C33="6",95%,IF(F33="M",40%,IF(F33="T",60%,IF(F33="L",85%,0)))))) -> 0.6
A34: 2021ES05SFPR008 | B34: FSE+ C.A. Illes Balears | C34: 5 | D34: ESO4.1 | E34: ESF | F34: T | H34: Renovación de los Conciertos para la prestación del Servicio de Orientación para el Empleo 25-27 destinados a jóvenes en riesgo de exclusión social (antes Servicio de Orientación Profesional 23-24) | I34: SI | J34: N/A | L34: GC-CONC | M34: 3 | N34: RENOVACIÓN CONCIERTOS SOO Jóvenes (antes SOP Jóvenes 23-24) | O34: Renovación de los Conciertos del Servicio de Orientación para el Empleo para jóvenes 25-27 (antes Servicio de Orientación Profesional 23-24) | P34: SOIB | R34: Renovación, para el período 2025-2027, del Concierto con Entidades del Tercer Sector de Acción Social parar la prestación del Servicio de Orientación para el Empleo (antes Servicio de Orientación Profesional) dirigido a jóvenes en riesgo de exclusión social con la finalidad de ayudar a las personas usuarias a mejorar su empleabilidad, promover su carrera profesional y facilitar su contratación u orientarlas hacia el autoempleo | S34: EECR05 | T34: 01/03/2025 o fecha de firma de cada acuerdo de renovación, si ésta es posterior | U34: 28/02/2027 o cuando se cumplan 2 años desde la firma del acuerdo de renovación | V34: 4428948 | W34: 0 | X34: ES | Y34: 153 | Z34: 01 | AA34: 30 | AB34: 23 | AC34: ES53 | AD34: 01 | AE34: 02 | AH34: 05 | AM34: 10 | AN34: 02 | AO34: 08 | AP34: 0 | AQ34: =AR34+AS34 -> 4428948 | AR34: =V34-(AS34+W34) -> 1771579.2 | AS34: =V34*AT34 -> 2657368.8 | AT34: =IF(A34="2021ES05SFPR009",85%,IF(A34="2021ES05SFPR004",90%,IF(C34="6",95%,IF(F34="M",40%,IF(F34="T",60%,IF(F34="L",85%,0)))))) -> 0.6

Sheet TD CUADRO 1 (hidden)
A2: Programa | B2: (Varios elementos) | D2: 1. Si no aparecen datos, selecciona tu programa
A4: Prioridad | B4: Objetivo específico | C4: Fondo | D4: Categoría de región | E4: Porcentaje de cofinanciación | F4: Suma de Coste subvencionable de la operación aprobada | G4: Suma de Importe total del gasto subvencionable declarado por los beneficiarios | H4: Cuenta de Código operación

Sheet COPIA TDCUADRO1 ORDENAR CAT.REG (hidden)
A1: 1 | B1: 2 | C1: 3 | D1: 4 | E1: 5 | F1: 6 | G1: 7 | H1: 8 | I1: 9 | J1: 10 | K1: 11 | L1: 12 | M1: 13
A2: Asignación financiera de la prioridad en función del programa | H2: Datos acumulativos sobre la situación financiera del programa | O2: 1. Arrastra hasta mostrar tantas filas como TD Cuadro 1.
A4: Prioridad | B4: Objetivo específico | C4: Fondo | D4: Categoría de región | E4: Base para el cálculo de la contribución de la Unión | F4: Asignación financiera total por fondo y contribución nacional (EUR) | G4: Porcentaje de cofinanciación (%) | H4: Coste total subvencionable de las operaciones seleccionadas (EUR) | I4: Contribución de los fondos a las operaciones seleccionadas (EUR) | J4: Proporción de la asignación financiera total cubierta por las operaciones seleccionadas (%) | K4: Importe total del gasto subvencionable declarado por los beneficiarios | L4: Proporción de la asignación financiera total cubierta por el gasto subvencionable declarado por los beneficiarios (%) | M4: Número de operaciones seleccionadas
A5: ='TD CUADRO 1'!A5 -> 0 | B5: ='TD CUADRO 1'!B5 -> 0 | C5: ='TD CUADRO 1'!C5 -> 0 | D5: ='TD CUADRO 1'!D5 -> 0 | G5: ='TD CUADRO 1'!E5 -> 0 | H5: ='TD CUADRO 1'!F5 -> 0 | I5: =IFERROR(H5*G5,"") -> 0 | J5: =IFERROR(H5/F5,"") ->  | K5: ='TD CUADRO 1'!G5 -> 0 | L5: =IFERROR(K5/F5,"") ->  | M5: ='TD CUADRO 1'!H5 -> 0 | O5: Compara/copia las columnas en gris con/en Cuadro 1

Sheet CUADRO 1 (hidden)
A1: 1 | B1: 2 | C1: 3 | D1: 4 | E1: 5 | F1: 6 | G1: 7 | H1: 8 | I1: 9 | J1: 10 | K1: 11 | L1: 12 | M1: 13
A2: Asignación financiera de la prioridad en función del programa | H2: Datos acumulativos sobre la situación financiera del programa
A4: Prioridad | B4: Objetivo específico | C4: Fondo | D4: Categoría de región | E4: Base para el cálculo de la contribución de la Unión | F4: Asignación financiera total por fondo y contribución nacional (EUR) | G4: Porcentaje de cofinanciación (%) | H4: Coste total subvencionable de las operaciones seleccionadas (EUR) | I4: Contribución de los fondos a las operaciones seleccionadas (EUR) | J4: Proporción de la asignación financiera total cubierta por las operaciones seleccionadas (%) | K4: Importe total del gasto subvencionable declarado por los beneficiarios | L4: Proporción de la asignación financiera total cubierta por el gasto subvencionable declarado por los beneficiarios (%) | M4: Número de operaciones seleccionadas
A5: 1 | B5: ESO4.1 | C5: FSE+ | D5: Transición | E5: Total | F5: 10570000 | H5: 0 | I5: =IFERROR(H5*G5,"") -> 0 | J5: =IFERROR(H5/F5,"") -> 0 | L5: =IFERROR(K5/F5,"") -> 0
A6: 2 | B6: ESO4.8 | C6: FSE+ | D6: Transición | E6: Total | F6: 42199998 | I6: =IFERROR(H6*G6,"") -> 0 | J6: =IFERROR(H6/F6,"") -> 0 | L6: =IFERROR(K6/F6,"") -> 0
A7: 2 | B7: ESO4.11 | C7: FSE+ | D7: Transición | E7: Total | F7: 10899212 | I7: 0 | J7: 0 | L7: 0
A8: 3 | B8: ESO4.5 | C8: FSE+ | D8: Transición | E8: Total | F8: 52200000 | I8: 0 | J8: 0 | L8: 0
A9: 5 | B9: ESO4.1 | C9: FSE+ | D9: Transición | E9: Total | F9: 44079998.58 | I9: 0 | J9: 0 | L9: 0
A10: 5 | B10: ESO4.6 | C10: FSE+ | D10: Transición | E10: Total | F10: 2000001.42 | I10: 0 | J10: 0 | L10: 0
A11: 7 | B11: ESO4.11 | C11: FSE+ | D11: Transición | E11: Total | F11: 8883290 | I11: 0 | J11: 0 | L11: 0
A12: Total | C12: FSE+ | D12: Transición | F12: 170832500 | I12: 0 | J12: 0 | L12: 0
A13: Total general | F13: 170832500 | I13: 0 | J13: 0 | L13: 0

Sheet TD CUADRO 2 (hidden)
A2: Título Programa | B2: FSE+ C.A. Illes Balears
A4: Prioridad | B4: Objetivo específico | C4: Fondo | D4: Categoría de región | E4: Campo de intervención | F4: Forma de ayuda | G4: D. Aplicación Territorial | H4: D. Actividad Económica | I4: D. Ubicación | J4: D. Igualdad de Género | K4: D. Macrorregional y de las cuencas marítimas | L4: D. Tema secundario del FSE+ 01 | M4: D. Tema secundario del FSE+ 02 | N4: D. Tema secundario del FSE+ 03 | O4: D. Tema secundario del FSE+ 04 | P4: D. Tema secundario del FSE+ 05 | Q4: D. Tema secundario del FSE+ 06 | R4: D. Tema secundario del FSE+ 07 | S4: D. Tema secundario del FSE+ 08 | T4: D. Tema secundario del FSE+ 09 | U4: D. Tema secundario del FSE+ 10 | V4: Suma de Coste subvencionable de la operación aprobada | W4: Suma de Importe total del gasto subvencionable declarado por los beneficiarios | X4: Cuenta de Código operación
A5: 1 | B5: ESO4.1 | C5: ESF | D5: T | E5: 134 | F5: 01 | G5: 30 | H5: 20 | I5: ES53 | J5: 02 | K5: 08 | L5: 01 | M5: 02 | N5: 03 | O5: 04 | P5: 05 | Q5: (en blanco) | R5: (en blanco) | S5: (en blanco) | T5: (en blanco) | U5: 10 | V5: 4000000 | W5: 0 | X5: 1
A6: 1 | B6: ESO4.1 | C6: ESF | D6: T | E6: 135 | F6: 01 | G6: 30 | H6: 20 | I6: ES53 | J6: 02 | K6: 08 | L6: 01 | M6: 02 | N6: 03 | O6: 04 | P6: 05 | Q6: (en blanco) | R6: (en blanco) | S6: (en blanco) | T6: (en blanco) | U6: 10 | V6: 6500000 | W6: 0 | X6: 1
A7: 2 | B7: ESO4.8 | C7: ESF | D7: T | E7: 153 | F7: 01 | G7: 30 | H7: 23 | I7: ES53 | J7: 02 | K7: 08 | L7: (en blanco) | M7: (en blanco) | N7: (en blanco) | O7: (en blanco) | P7: 05 | Q7: (en blanco) | R7: (en blanco) | S7: (en blanco) | T7: (en blanco) | U7: (en blanco) | V7: 21104911.8 | W7: 0 | X7: 3
A8: 5 | B8: ESO4.1 | C8: ESF | D8: T | E8: 136 | F8: 01 | G8: 30 | H8: 20 | I8: ES53 | J8: 02 | K8: 08 | L8: 01 | M8: 02 | N8: (en blanco) | O8: (en blanco) | P8: 05 | Q8: (en blanco) | R8: (en blanco) | S8: (en blanco) | T8: (en blanco) | U8: 10 | V8: 6500000 | W8: 0 | X8: 1
A9: 5 | B9: ESO4.1 | C9: ESF | D9: T | E9: 149 | F9: 01 | G9: 30 | H9: 21 | I9: ES53 | J9: 02 | K9: 08 | L9: 01 | M9: 02 | N9: (en blanco) | O9: (en blanco) | P9: 05 | Q9: (en blanco) | R9: (en blanco) | S9: (en blanco) | T9: (en blanco) | U9: 10 | V9: 12000000 | W9: 0 | X9: 2
A10: 5 | B10: ESO4.1 | C10: ESF | D10: T | E10: 153 | F10: 01 | G10: 30 | H10: 21 | I10: ES53 | J10: 02 | K10: 08 | L10: 01 | M10: 02 | N10: (en blanco) | O10: (en blanco) | P10: 05 | Q10: (en blanco) | R10: (en blanco) | S10: (en blanco) | T10: (en blanco) | U10: 10 | V10: 700000 | W10: 0 | X10: 1
A11: 5 | B11: ESO4.1 | C11: ESF | D11: T | E11: 153 | F11: 01 | G11: 30 | H11: 23 | I11: ES53 | J11: 02 | K11: 08 | L11: 01 | M11: 02 | N11: (en blanco) | O11: (en blanco) | P11: 05 | Q11: (en blanco) | R11: (en blanco) | S11: (en blanco) | T11: (en blanco) | U11: 10 | V11: 4161592.15 | W11: 0 | X11: 1
A12: 5 | B12: ESO4.6 | C12: ESF | D12: T | E12: 151 | F12: 01 | G12: 30 | H12: 21 | I12: ES53 | J12: 02 | K12: 08 | L12: (en blanco) | M12: (en blanco) | N12: (en blanco) | O12: (en blanco) | P12: (en blanco) | Q12: (en blanco) | R12: (en blanco) | S12: (en blanco) | T12: (en blanco) | U12: 10 | V12: 4800000 | W12: 0 | X12: 2

Sheet Copia TDCuadro 2 para carga SFC (hidden)
A4: Priority | B4: Specific objective | C4: Fund | D4: Category of region | E4: Intervention field | F4: Form of support | G4: Territorial delivery dimension | H4: Economic activity dimension | I4: Location dimension | J4: ESF+ secondary theme | K4: ESF+ secondary theme 02 | L4: ESF+ secondary theme 03 | M4: ESF+ secondary theme 04 | N4: ESF+ secondary theme 05 | O4: ESF+ secondary theme 06 | P4: ESF+ secondary theme 07 | Q4: ESF+ secondary theme 08 | R4: ESF+ secondary theme 09 | S4: ESF+ secondary theme 10 | T4: Gender equality dimension | U4: Macro-regional and sea-basin dimension | V4: Total eligible cost of selected operations (EUR) | W4: Total eligible expenditure declared by beneficiaries | X4: Number of selected operations
A5: ='TD CUADRO 2'!A5 -> 1 | B5: ='TD CUADRO 2'!B5 -> ESO4.1 | C5: ='TD CUADRO 2'!C5 -> ESF | D5: ='TD CUADRO 2'!D5 -> T | E5: ='TD CUADRO 2'!E5 -> 134 | F5: ='TD CUADRO 2'!F5 -> 01 | G5: ='TD CUADRO 2'!G5 -> 30 | H5: ='TD CUADRO 2'!H5 -> 20 | I5: ='TD CUADRO 2'!I5 -> ES53 | J5: ='TD CUADRO 2'!L5 -> 01 | K5: ='TD CUADRO 2'!M5 -> 02 | L5: ='TD CUADRO 2'!N5 -> 03 | M5: ='TD CUADRO 2'!O5 -> 04 | N5: ='TD CUADRO 2'!P5 -> 05 | O5: ='TD CUADRO 2'!Q5 -> (en blanco) | P5: ='TD CUADRO 2'!R5 -> (en blanco) | Q5: ='TD CUADRO 2'!S5 -> (en blanco) | R5: ='TD CUADRO 2'!T5 -> (en blanco) | S5: ='TD CUADRO 2'!U5 -> 10 | T5: ='TD CUADRO 2'!J5 -> 02 | U5: ='TD CUADRO 2'!K5 -> 08 | V5: ='TD CUADRO 2'!V5 -> 4000000 | W5: ='TD CUADRO 2'!W5 -> 0 | X5: ='TD CUADRO 2'!X5 -> 1

Sheet FICHERO CARGA CUADRO2 SFC (hidden)
A1: Priority | B1: Specific objective | C1: Fund | D1: Category of region | E1: Intervention field | F1: Form of support | G1: Territorial delivery dimension | H1: Economic activity dimension | I1: Location dimension | J1: ESF+ secondary theme | K1: ESF+ secondary theme 02 | L1: ESF+ secondary theme 03 | M1: ESF+ secondary theme 04 | N1: ESF+ secondary theme 05 | O1: ESF+ secondary theme 06 | P1: ESF+ secondary theme 07 | Q1: ESF+ secondary theme 08 | R1: ESF+ secondary theme 09 | S1: ESF+ secondary theme 10 | T1: Gender equality dimension | U1: Macro-regional and sea-basin dimension | V1: Total eligible cost of selected operations (EUR) | W1: Total eligible expenditure declared by beneficiaries | X1: Number of selected operations
Y2: Pega los datos de Copia TDCuadro2 para carga SFC aquí. ¡¡¡Pegalos como valor¡¡¡

Sheet CUADRO 2 (hidden)
A1: Características del gasto | E1: Dimensión de categorización | V1: Datos financieros
A2: Prioridad | B2: Objetivo específico | C2: Fondo | D2: Categoría de región | E2: 1 | F2: 2 | G2: 3 | H2: 4 | I2: 5 | J2: 6 | T2: 7 | U2: 8 | V2: Coste total subvencionable de las operaciones seleccionadas (EUR) | W2: Importe total del gasto subvencionable declarado por los beneficiarios | X2: Número de operaciones seleccionadas
E3: Campo de intervención | F3: Forma de ayuda | G3: Dimensión de la aplicación territorial | H3: Dimensión de la actividad económica | I3: Dimensión de ubicación | J3: Tema secundario del FSE+ 01 | K3: Tema secundario del FSE+ 02 | L3: Tema secundario del FSE+ 03 | M3: Tema secundario del FSE+ 04 | N3: Tema secundario del FSE+ 05 | O3: Tema secundario del FSE+ 06 | P3: Tema secundario del FSE+ 07 | Q3: Tema secundario del FSE+ 08 | R3: Tema secundario del FSE+ 09 | S3: Tema secundario del FSE+ 10 | T3: Dimensión de igualdad de género | U3: Dimensión macrorregional y de las cuencas marítimas

Sheet Copia TDCuadro 2 con TSec (hidden)
A4: Priority | B4: Specific objective | C4: Fund | D4: Category of region | E4: Intervention field | F4: Form of support | G4: Territorial delivery dimension | H4: Economic activity dimension | I4: Location dimension | J4: ESF+ secondary theme | K4: ESF+ secondary theme 02 | L4: ESF+ secondary theme 03 | M4: ESF+ secondary theme 04 | N4: ESF+ secondary theme 05 | O4: ESF+ secondary theme 06 | P4: ESF+ secondary theme 07 | Q4: ESF+ secondary theme 08 | R4: ESF+ secondary theme 09 | S4: ESF+ secondary theme 10 | T4: Gender equality dimension | U4: Macro-regional and sea-basin dimension | V4: Total eligible cost of selected operations (EUR) | W4: Total eligible expenditure declared by beneficiaries | X4: Number of selected operations

Sheet LISTAS PERSONALIZADAS (hidden)
A2: OBJETIVOS ESPECÍFICOS | B2: ESO4.1;ESO4.2;ESO4.3;ESO4.4;ESO4.5;ESO4.6;ESO4.7;ESO4.8;ESO4.9;ESO4.10;ESO4.11;ESO4.12;ESO4.13
A3: REGIONES | B3: M;T;L;O

Sheet Programas (hidden)
A1: CCI | B1: TÍTULO PROGRAMA
A2: 2021ES05SFPR001 | B2: FSE+ Empleo Juvenil
A3: 2021ES05SFPR002 | B3: FSE+ de Educación y Formación, Empleo y Economía Social
A4: 2021ES05SFPR003 | B4: FSE+ de Inclusión Social, Garantía Infantil y Lucha Contra la Pobreza
A5: 2021ES05SFPR004 | B5: FSE+ de Asistencia Material Básica
A6: 2021ES05SFPR005 | B6: FSE+ C.A. Andalucía
A7: 2021ES05SFPR006 | B7: FSE+ C.A. Aragón
A8: 2021ES05SFPR007 | B8: FSE+ Principado de Asturias
A9: 2021ES05SFPR008 | B9: FSE+ C.A. Illes Balears
A10: 2021ES05SFPR009 | B10: FSE+ C.A. Canarias
A11: 2021ES05SFPR010 | B11: FSE+ C.A. Cantabria
A12: 2021ES05SFPR011 | B12: FSE+ C.A. Cataluña
A13: 2021ES05SFPR012 | B13: FSE+ C.A. Castilla-La Mancha
A14: 2021ES05SFPR013 | B14: FSE+ C.A. Castilla y León
A15: 2021ES05SFPR014 | B15: FSE+ Ciudad A. de Ceuta
A16: 2021ES05SFPR015 | B16: FSE+ Comunitat Valenciana
A17: 2021ES05SFPR016 | B17: FSE+ C.A. Extremadura
A18: 2021ES05SFPR017 | B18: FSE+ C.A. Galicia
A19: 2021ES05SFPR018 | B19: FSE+ C.A. La Rioja
A20: 2021ES05SFPR019 | B20: FSE+ C. de Madrid
A21: 2021ES05SFPR020 | B21: FSE+ Ciudad A. de Melilla
A22: 2021ES05SFPR021 | B22: FSE+ Región de Murcia
A23: 2021ES05SFPR022 | B23: FSE+ C. Foral de Navarra

Sheet Fondos (hidden)
A1: CÓDIGO | B1: DESCRIPCIÓN
A2: ESF | B2: ESF+

Sheet Tasa cofinanciación (hidden)
D3: CODIGO | E3: Tasa de cofinanciación
D4: 0.85 | E4: Menos desarrolladas
D5: 0.6 | E5: Transición
D6: 0.4 | E6: Más desarrolladas
D7: 0.85 | E7: Regiones ultraperiféricas o regiones septentrionales escasamente pobladas
D8: 0.9 | E8: BASICO
D9: 0.95 | E9: Prioridad 6

Sheet Prioridades (hidden)
A1: CÓDIGO | B1: PRIORIDAD
A2: 1 | B2: Empleo, adaptabilidad, emprendimiento y economía social - FSE+
A3: 2 | B3: Inclusión social - FSE+
A4: 3 | B4: Educación y formación - FSE+
A5: 4 | B5: Lucha contra la privación material - FSE+
A6: 5 | B6: Empleo juvenil - FSE+
A7: 6 | B7: Acciones sociales innovadoras - FSE+
A8: 7 | B8: Garantía Infantil - FSE+
A9: 8 | B9: Empleo, inclusión social y educación RUP - FSE+ RUP 85%

Sheet Objeticos específicos (hidden)
A1: CÓDIGO | B1: OBJETIVO ESPECÍFICO
A2: ESO4.1 | B2: a) mejorar el acceso al empleo y las medidas de activación para el empleo de los demandantes de empleo, en particular de los jóvenes, especialmente mediante la aplicación de la Garantía Juvenil, los desempleados de larga duración y los grupos desfavorecidos, así como de las personas inactivas, así como mediante la promoción del empleo por cuenta propia y la economía social
A3: ESO4.2 | B3: b) modernizar las instituciones y los servicios del mercado de trabajo para evaluar y prever las necesidades de capacidades y garantizar una asistencia oportuna y personalizada y el apoyo a la adecuación entre la oferta y la demanda en el mercado de trabajo, las transiciones y la movilidad;
A4: ESO4.3 | B4: c) promover una participación equilibrada de género en el mercado de trabajo, unas condiciones de trabajo equitativas y una mejora del equilibrio entre la vida laboral y la familiar, en particular mediante el acceso a unos servicios asequibles de atención a la infancia y de atención a personas dependientes;
A5: ESO4.4 | B5: d) promover la adaptación de los trabajadores, las empresas y los emprendedores al cambio, el envejecimiento activo y saludable y un entorno de trabajo saludable y bien adaptado que aborde los riesgos para la salud;
A6: ESO4.5 | B6: e) mejorar la calidad, inclusividad, eficacia y pertinencia para el mercado laboral de los sistemas de educación y formación, también mediante la validación del aprendizaje no formal e informal, para apoyar la adquisición de competencias clave, incluidas las capacidades empresariales y digitales, y promoviendo la introducción de sistemas de formación dual y de formación de aprendices;
A7: ESO4.6 | B7: f) promover la igualdad de acceso a una educación y una formación de calidad e inclusivas y su culminación, en particular para los grupos desfavorecidos, desde la educación infantil y cuidados de la primera infancia, pasando por la educación y la formación generales y profesionales, hasta la educación superior, así como la educación y el aprendizaje de las personas adultas, facilitando también la movilidad para el aprendizaje para todos y la accesibilidad de las personas con discapacidad;
A8: ESO4.7 | B8: g) promover el aprendizaje permanente, en particular mediante oportunidades para todos de mejora y reciclaje flexibles de las capacidades teniendo en cuenta las capacidades empresariales y digitales, una mejor previsión de los cambios y nuevos requisitos de capacidades, habida cuenta de las necesidades del mercado de trabajo, facilitando las transiciones profesionales y promoviendo la movilidad profesional
A9: ESO4.8 | B9: h) fomentar la inclusión activa al objeto de promover la igualdad de oportunidades, la no discriminación y la participación activa, y mejorar la empleabilidad, en particular para los grupos desfavorecidos;
A10: ESO4.9 | B10: i) promover la integración socioeconómica de los nacionales de terceros países, incluidos los migrantes;
A11: ESO4.10 | B11: j) promover la integración socioeconómica de las comunidades marginadas, como la población romaní;
A12: ESO4.11 | B12: k) mejorar la igualdad y la oportunidad del acceso a unos servicios de calidad, sostenibles y asequibles, incluidos los servicios que promueven el acceso a la vivienda y a una atención centrada en las personas, incluida la asistencia sanitaria; modernizar los sistemas de protección social, también fomentando el acceso a la protección social, con especial atención a los menores y los grupos desfavorecidos; mejorar la accesibilidad, también para personas con discapacidad, la efectividad y la resiliencia de los sistemas de asistencia sanitaria y de los servicios de cuidados de larga duración;
A13: ESO4.12 | B13: l) promover la integración social de las personas en riesgo de pobreza o exclusión social, incluidas las personas más desfavorecidas y la población infantil;
A14: ESO4.13 | B14: m) hacer frente a la privación material mediante alimentos y/o prestación de asistencia material básica a las personas más desfavorecidas, en particular a los menores, y establecer medidas de acompañamiento que apoyen su inclusión social.

Sheet Categorías de región (hidden)
A1: CÓDIGO SFC | B1: CATEGORÍAS DE REGIÓN | C1: Código FSEPLUS | D1: CATEGORÍA DE REGIÓN
A2: L | B2: Less Developed | C2: MeD | D2: Menos desarrolladas
A3: T | B3: Transition | C3: EnT | D3: Transición
A4: M | B4: More Developed | C4: MaD | D4: Más desarrolladas
A5: O | B5: Outermost or Northern Sparsely Populated | C5: RUP | D5: Regiones ultraperiféricas o regiones septentrionales escasamente pobladas

Sheet Aplicación art 94 o 95 (hidden)
A1: CÓDIGO | B1: ARTÍCULO 94 o 95
A2: N/A | B2: No aplican art. 94 ni art. 95
A3: ART94-PRO | B3: Artículo 94. Programa. Apéndice 1.
A4: ART94-REG | B4: Artículo 94. Reglamento Delegado.
A5: ART95-PRO | B5: Artículo 95. Programa. Apéndice 1.
A6: ART95-REG | B6: Artículo 95. Reglamento Delegado.

Sheet Métodos de Gestión (hidden)
A1: CÓDIGO | B1: MÉTODO DE GESTIÓN
A2: GD-ED | B2: Gestión directa: Ejecución directa
A3: GD-CONV | B3: Gestión directa: Convenios
A4: GD-ENC | B4: Gestión directa: Encomienda de gestión
A5: GD-MP | B5: Gestión directa: Encargo a medios propios
A6: GC-CONC | B6: Gestión directa: Conciertos
A7: GI-CONT | B7: Gestión Indirecta: Contrato
A8: CS | B8: Convocatoria de subvenciones

Sheet Tipología de operación (hidden)
A1: CODIGO | B1: TIPOLOGÍA DE OPERACIÓN
A2: 1A | B2: Formación a lo largo de la vida laboral
A3: 1B | B3: Formación Profesional
A4: 1C | B4: Formación de Personal Investigador y Ayudas Predoctorales e impulso a la investigación
A5: 2 | B5: Itinerarios Integrados
A6: 3 | B6: Orientación académica y/o profesional
A7: 4 | B7: Becas y ayudas para la educación y la formación
A8: 5A | B8: Ayudas para el fomento de la contratación
A9: 5B | B9: Bonificaciones y reducciones de cuotas a la Seguridad Social
A10: 5C | B10: Ayudas para el fomento del empleo protegido
A11: 6 | B11: Apoyo a los emprendedores y a la creación de empresas
A12: 7A | B12: Ayudas a la movilidad geográfica y funcional de trabajadores
A13: 7B | B13: Ayudas para mejoras de sistemas en las empresas
A14: 8 | B14: Iniciativas locales de empleo, pactos territoriales y otras ayudas en el ámbito local
A15: 9 | B15: Acciones frente al abandono escolar
A16: 10 | B16: Innovación social
A17: 11 | B17: Ayudas a redes y asociaciones
A18: 12 | B18: Impulso y promoción de la conciliación de la vida laboral y familia, así como de la igualdad de oportunidades, de la igualdad de trato, de la no discriminación y del fomento de la autonomía personal
A19: 13A | B19: Actualizaciones curriculares y de los catálogos de cualificaciones
A20: 13B | B20: Mejora del funcionamiento y calidad del Sistema Educativo y de la Formación Profesional
A21: 14 | B21: Actuaciones de modernización y mejora de los servicios de empleo y mercado de trabajo
A22: 15 | B22: Provisiones de ayuda de alimentos y productos básicos, así como medidas sociolaborales de acompañamiento que se recogen en el Programa Básico
A23: 16 | B23: Acciones de carácter socio-sanitario
A24: 17 | B24: Intervenciones centradas en la lucha para erradicar la exclusión de vivienda
A25: 18 | B25: Medidas de intervención directa y de los servicios sociales
A26: Pendiente | B26: Requiere nueva tipología

Sheet CAMPO DE INTERVENCIÓN (hidden)
A1: CODIGO | B1: CAMPO DE INTERVENCIÓN
A2: 121 | B2: Infraestructuras para la educación y el cuidado de la primera infancia
A3: 122 | B3: Infraestructuras para la enseñanza primaria y secundaria
A4: 123 | B4: Infraestructuras para la enseñanza superior
A5: 124 | B5: Infraestructuras para la educación y la formación profesional y el aprendizaje de adultos
A6: 125 | B6: Infraestructuras de vivienda para migrantes, refugiados y personas bajo protección internacional o que soliciten protección internacional
A7: 126 | B7: Infraestructuras de vivienda (para personas distintas de los migrantes, refugiados y personas bajo protección internacional o que soliciten protección internacional)
A8: 127 | B8: Otras infraestructuras sociales que contribuyen a la inclusión social en la comunidad
A9: 128 | B9: Infraestructuras sanitarias
A10: 129 | B10: Equipos sanitarios
A11: 130 | B11: Bienes muebles para servicios sanitarios
A12: 131 | B12: Digitalización en el sector sanitario
A13: 132 | B13: Equipos y suministros críticos necesarios para hacer frente a una situación de emergencia
A14: 133 | B14: Infraestructuras de acogida temporal para migrantes, refugiados y personas bajo protección internacional o que soliciten protección internacional
A15: 134 | B15: Medidas para mejorar el acceso al empleo
A16: 135 | B16: Medidas para fomentar el acceso al empleo de los desempleados de larga duración
A17: 136 | B17: Ayuda específica para el empleo juvenil y la integración socioeconómica de los jóvenes
A18: 137 | B18: Apoyo al trabajo por cuenta propia y a la creación de empresas
A19: 138 | B19: Apoyo para la economía social y las empresas sociales
A20: 139 | B20: Medidas para modernizar y reforzar las instituciones y servicios del mercado laboral para evaluar y anticipar las necesidades en materia de capacidades y garantizar una asistencia personalizada y oportuna
A21: 140 | B21: Apoyo a la adecuación entre la demanda y la oferta de empleo y las transiciones en el mercado laboral
A22: 141 | B22: Apoyo a la movilidad laboral
A23: 142 | B23: Medidas para promover la participación de las mujeres y reducir la segregación de género en el mercado laboral
A24: 143 | B24: Medidas de fomento del equilibrio entre vida privada y vida laboral, incluido el acceso a los servicios de guardería y de atención a las personas dependientes
A25: 144 | B25: Medidas para un entorno de trabajo sano y bien adaptado para hacer frente a los riesgos para la salud, incluida la promoción de la actividad física
A26: 145 | B26: Apoyo al desarrollo de las capacidades digitales
A27: 146 | B27: Apoyo a la adaptación al cambio de trabajadores, empresas y emprendedores
A28: 147 | B28: Medidas para fomentar el envejecimiento activo y saludable
A29: 148 | B29: Apoyo a la educación y el cuidado de la primera infancia (excluidas las infraestructuras)
A30: 149 | B30: Apoyo a la enseñanza primaria y secundaria (excluidas las infraestructuras)
A31: 150 | B31: Apoyo a la enseñanza terciaria (excluidas las infraestructuras)
A32: 151 | B32: Apoyo a la educación de personas adultas (excluidas las infraestructuras)
A33: 152 | B33: Medidas para promover la igualdad de oportunidades y la participación activa en la sociedad
A34: 153 | B34: Vías de integración y reintegración en el mundo laboral de las personas desfavorecidas
A35: 154 | B35: Medidas destinadas a mejorar el acceso de colectivos marginados como los gitanos a la educación y el empleo, y a promover su inclusión social
A36: 155 | B36: Apoyo a la sociedad civil activa con las comunidades marginadas, como la gitana
A37: 156 | B37: Acciones específicas destinadas a aumentar la participación de nacionales de terceros países en el empleo
A38: 157 | B38: Medidas para la integración social de los nacionales de terceros países
A39: 158 | B39: Medidas para mejorar el acceso equitativo y oportuno a servicios de calidad, sostenibles y asequibles
A40: 159 | B40: Medidas para mejorar la prestación de servicios locales y familiares
A41: 160 | B41: Medidas para mejorar la accesibilidad, la eficacia y la resiliencia de los sistemas sanitarios (excluidas las infraestructuras)
A42: 161 | B42: Medidas destinadas a mejorar el acceso a los cuidados de larga duración (excluidas las infraestructuras)
A43: 162 | B43: Medidas para modernizar los sistemas de protección social, incluido el fomento del acceso a la protección social
A44: 163 | B44: Promoción de la integración social de personas en riesgo de pobreza o exclusión social, en particular las más desfavorecidas y los niños
A45: 164 | B45: Subsanar las carencias materiales de los más desfavorecidos mediante la provisión de alimentos o asistencia material, incluidas medidas de acompañamiento.
A46: 170 | B46: Mejora de la capacidad de las autoridades responsables de los programas y de los organismos vinculados a la ejecución de los Fondos
A47: 171 | B47: Mejora de la cooperación con socios tanto internos como externos al Estado miembro
A48: 172 | B48: Financiación cruzada en el marco del FEDER (apoyo a acciones asimilables a las del FSE+ necesarias para la ejecución satisfactoria de la parte del FEDER de la operación y relacionadas directamente con ella).
A49: 173 | B49: Mejora de la capacidad institucional de las autoridades públicas y las partes interesadas para implementar los proyectos e iniciativas de cooperación territorial en un contexto transfronterizo, transnacional, marítimo e interregional
A50: 174 | B50: Interreg: gestión del cruce fronterizo y gestión de la movilidad y la migración
A51: 175 | B51: Regiones ultraperiféricas: compensación de los costes adicionales derivados del déficit de accesibilidad y la fragmentación territorial
A52: 176 | B52: Regiones ultraperiféricas: acción específica de compensación de los costes adicionales derivados de factores relativos al tamaño del mercado
A53: 177 | B53: Regiones ultraperiféricas: ayudas para compensar los costes adicionales derivados de las condiciones climáticas y las dificultades del terreno
A54: 178 | B54: Regiones ultraperiféricas: aeropuertos
A55: 179 | B55: Información y comunicación
A56: 180 | B56: Preparación, ejecución, seguimiento y control
A57: 181 | B57: Evaluación y estudios, recogida de datos
A58: 182 | B58: Refuerzo de la capacidad de las autoridades de los Estados miembros, los beneficiarios y los socios pertinentes

Sheet Forma de ayuda (hidden)
A1: CODIGO | B1: FORMA DE AYUDA
A2: 01 | B2: Subvención
A3: 02 | B3: Ayuda mediante instrumentos financieros: capital o cuasicapital
A4: 03 | B4: Ayuda mediante instrumentos financieros: préstamo
A5: 04 | B5: Ayuda mediante instrumentos financieros: garantía
A6: 05 | B6: Apoyo mediante instrumentos financieros: Subvenciones en una operación de instrumentos financieros
A7: 06 | B7: Premio

Sheet D. Intervención territorial (hidden)
A1: CODIGO | B1: D. Aplicación territorial | C1: DESCRIPCION
A2: 01 | B2: 01-Inversión territorial integrada | C2: Barrios urbanos
A3: 02 | B3: 01-Inversión territorial integrada | C3: Ciudades, municipios y extrarradio
A4: 03 | B4: 01-Inversión territorial integrada | C4: Zonas urbanas funcionales
A5: 04 | B5: 01-Inversión territorial integrada | C5: Zonas rurales
A6: 05 | B6: 01-Inversión territorial integrada | C6: Zonas montañosas
A7: 06 | B7: 01-Inversión territorial integrada | C7: Islas y zonas costeras
A8: 07 | B8: 01-Inversión territorial integrada | C8: Zonas con escasa densidad de población
A9: 08 | B9: 01-Inversión territorial integrada | C9: Otros tipos de territorios destinatarios
A10: 09 | B10: 02-Desarrollo local participativo | C10: Barrios urbanos
A11: 10 | B11: 02-Desarrollo local participativo | C11: Ciudades, municipios y extrarradio
A12: 11 | B12: 02-Desarrollo local participativo | C12: Zonas urbanas funcionales
A13: 12 | B13: 02-Desarrollo local participativo | C13: Zonas rurales
A14: 13 | B14: 02-Desarrollo local participativo | C14: Zonas montañosas
A15: 14 | B15: 02-Desarrollo local participativo | C15: Islas y zonas costeras
A16: 15 | B16: 02-Desarrollo local participativo | C16: Zonas con escasa densidad de población
A17: 16 | B17: 02-Desarrollo local participativo | C17: Otros tipos de territorios destinatarios
A18: 17 | B18: 03-Otro tipo de instrumento territorial | C18: Barrios urbanos
A19: 18 | B19: 03-Otro tipo de instrumento territorial | C19: Ciudades, municipios y extrarradio
A20: 19 | B20: 03-Otro tipo de instrumento territorial | C20: Zonas urbanas funcionales
A21: 20 | B21: 03-Otro tipo de instrumento territorial | C21: Zonas rurales
A22: 21 | B22: 03-Otro tipo de instrumento territorial | C22: Zonas montañosas
A23: 22 | B23: 03-Otro tipo de instrumento territorial | C23: Islas y zonas costeras
A24: 23 | B24: 03-Otro tipo de instrumento territorial | C24: Zonas con escasa densidad de población
A25: 24 | B25: 03-Otro tipo de instrumento territorial | C25: Otros tipos de territorios destinatarios
A26: 25 | B26: 04-Otros enfoques | C26: Barrios urbanos
A27: 26 | B27: 04-Otros enfoques | C27: Ciudades, municipios y extrarradio
A28: 27 | B28: 04-Otros enfoques | C28: Zonas urbanas funcionales
A29: 28 | B29: 04-Otros enfoques | C29: Zonas rurales
A30: 29 | B30: 04-Otros enfoques | C30: Zonas montañosas
A31: 30 | B31: 04-Otros enfoques | C31: Islas y zonas costeras
A32: 31 | B32: 04-Otros enfoques | C32: Zonas con escasa densidad de población
A33: 32 | B33: 04-Otros enfoques | C33: Otros tipos de territorios destinatarios
A34: 33 | B34: 04-Otros enfoques | C34: Sin enfoque territorial

Sheet D. Actividad económica (hidden)
A1: CODIGO | B1: D. ACTIVIDAD ECONÓMICA
A2: 01 | B2: Agricultura y silvicultura
A3: 02 | B3: Pesca
A4: 03 | B4: Acuicultura
A5: 04 | B5: Otros sectores de la economía azul
A6: 05 | B6: Elaboración de productos alimenticios y bebidas
A7: 06 | B7: Industria textil y de la confección
A8: 07 | B8: Fabricación de material de transporte
A9: 08 | B9: Fabricación de productos informáticos, electrónicos y ópticos
A10: 09 | B10: Otras industrias manufactureras no especificadas
A11: 10 | B11: Construcción
A12: 11 | B12: Industrias de extracción (incluida la extracción de productos energéticos)
A13: 12 | B13: Energía eléctrica, gas, vapor, agua caliente y aire acondicionado
A14: 13 | B14: Suministro de agua, actividades de saneamiento, gestión de residuos y descontaminación
A15: 14 | B15: Transporte y almacenamiento
A16: 15 | B16: Actividades de información y comunicaciones, incluidas las telecomunicaciones, los servicios de información, la programación de ordenadores, la consultoría y otras actividades relacionadas
A17: 16 | B17: Comercio al por mayor y al por menor
A18: 17 | B18: Turismo y hostelería
A19: 18 | B19: Actividades financieras y de seguros
A20: 19 | B20: Actividades inmobiliarias y de alquiler; servicios prestados a las empresas
A21: 20 | B21: Administración pública
A22: 21 | B22: Enseñanza
A23: 22 | B23: Actividades sanitarias
A24: 23 | B24: Asistencia social, servicios prestados a la comunidad y servicios sociales y personales
A25: 24 | B25: Actividades relacionadas con el medio ambiente y el cambio climático
A26: 25 | B26: Artes, espectáculos, industrias creativas y ocio
A27: 26 | B27: Otros servicios no especificados

Sheet D. Ubicación (hidden)
A1: CÓDIGO | B1: D. UBICACIÓN
A2: ES11 | B2: Galicia
A3: ES12 | B3: Principado de Asturias
A4: ES13 | B4: Cantabria
A5: ES21 | B5: País Vasco
A6: ES22 | B6: Comunidad Foral de Navarra
A7: ES23 | B7: La Rioja
A8: ES24 | B8: Aragón
A9: ES30 | B9: Comunidad de Madrid
A10: ES41 | B10: Castilla y León
A11: ES42 | B11: Castilla La Mancha
A12: ES43 | B12: Extremadura
A13: ES51 | B13: Cataluña
A14: ES52 | B14: Comunitad Valenciana
A15: ES53 | B15: Illes Balears
A16: ES61 | B16: Andalucía
A17: ES62 | B17: Región de Murcia
A18: ES63 | B18: Ciudad Autónoma de Ceuta
A19: ES64 | B19: Ciudad Autónoma de Melilla
A20: ES70 | B20: Canarias
A21: ES | B21: Todas

Sheet D. Tema secundario del FSE+ (hidden)
A1: CODIGO | B1: D. Tema secundario del FSE+ | D1: CODIGO T.SEC 01 | E1: CODIGO T.SEC 02 | F1: CODIGO T.SEC 03 | G1: CODIGO T.SEC 04 | H1: CODIGO T.SEC 05 | I1: CODIGO T.SEC 06 | J1: CODIGO T.SEC 07 | K1: CODIGO T.SEC 08 | L1: CODIGO T.SEC 09 | M1: CODIGO T.SEC 10
A2: 01 | B2: Contribución a las competencias y empleos verdes y a la economía ecológica
A3: 02 | B3: Desarrollo de capacidades y empleos digitales | D3: 01 | E3: 02 | F3: 03 | G3: 04 | H3: 05 | I3: 06 | J3: 07 | K3: 08 | L3: 09 | M3: 10
A4: 03 | B4: Inversión en investigación e innovación y especialización inteligente
A5: 04 | B5: Inversión en pequeñas y medianas empresas (pymes)
A6: 05 | B6: No discriminación
A7: 06 | B7: Hacer frente a la pobreza infantil
A8: 07 | B8: Capacitación de los interlocutores sociales
A9: 08 | B9: Capacitación de las organizaciones de la sociedad civil
A10: 09 | B10: No procede
A11: 10 | B11: Abordar los retos señalados en Semestre Europeo

Sheet D. Igualdad de género (hidden)
A1: CODIGO | B1: D. IGUALDAD DE GÉNERO
A2: 01 | B2: Proyectos centrados en las cuestiones de género
A3: 02 | B3: Proyectos que integran la perspectiva de género
A4: 03 | B4: Neutralidad desde el punto de vista del género

Sheet Macrorregionales y Cuencas M (hidden)
A1: CODE | B1: D. MACRORREGIONAL Y DE LAS CUENCAS MARÍTIMAS
A2: 11 | B2: No contribución a las estrategias macrorregionales y de las cuencas marítimas.
A3: 10 | B3: Estrategia para la Región del Mediterráneo Occidental
A4: 09 | B4: Mar del Norte
A5: 08 | B5: Mar Mediterráneo
A6: 07 | B6: Mar Negro
A7: 06 | B7: Estrategia para la Región Atlántica
A8: 05 | B8: Océano Ártico
A9: 04 | B9: Estrategia para la Región del Danubio
A10: 03 | B10: Estrategia para la Región del Mar Báltico
A11: 02 | B11: Estrategia para la Región Alpina
A12: 01 | B12: Estrategia para la Región del Adriático y del Jónico
